fUST/lending_fUST_20240721
["ID","MTS","AMOUNT","RATE_DAILY","PERIOD"]
[332751978,1721502660667,-500.0,0.0001452,2]
[332751979,1721502660677,-500.0,0.0001452,2]
[332751980,1721502660687,-2781.42,0.0001452,2]
[332751981,1721502660698,-2367.78,0.0001452,2]
[332751982,1721502660708,-500.0,0.0001452,2]
[332751983,1721502660724,-5408.7,0.0001452,2]
[332751984,1721502660734,-500.0,0.0001452,2]
[332751985,1721502660743,-10858.16,0.0001452,2]
[332751986,1721502660754,-820.06,0.0001452,2]
[332751987,1721502660764,-1251.33,0.0001452,2]
[332751988,1721502660774,-500.0,0.0001452,2]
[332751989,1721502660784,-500.0,0.0001452,2]
[332751990,1721502660796,-500.0,0.0001452,2]
[332751991,1721502660806,-2190.32,0.0001452,2]
[332751992,1721502660816,-1627.8,0.0001452,2]
[332751993,1721502660827,-500.0,0.0001452,2]
[332751994,1721502660837,-500.0,0.0001452,2]
[332751995,1721502660847,-500.0,0.0001452,2]
[332751996,1721502660857,-1332.24,0.0001452,2]
[332751997,1721502660867,-500.0,0.0001452,2]
[332751998,1721502660877,-2697.92,0.0001452,2]
[332751999,1721502660887,-500.0,0.0001452,2]
[332752000,1721502660898,-500.0,0.0001452,2]
[332752001,1721502660908,-1186.45,0.0001452,2]
[332752002,1721502660919,-500.0,0.0001452,2]
[332752003,1721502660929,-500.0,0.0001452,2]
[332752004,1721502660939,-500.0,0.0001452,2]
[332752005,1721502660949,-500.0,0.0001452,2]
[332752006,1721502660959,-1831.22,0.0001452,2]
[332752007,1721502660969,-1386.39,0.0001452,2]
[332752008,1721502660979,-982.65,0.0001452,2]
[332752009,1721502660988,-560.44,0.0001452,2]
[332752010,1721502660998,-500.0,0.0001452,2]
[332752011,1721502661008,-580.38,0.0001452,2]
[332752012,1721502661018,-500.0,0.0001452,2]
[332752013,1721502661028,-53188.42,0.0001452,2]
[332752014,1721502661038,-2374.03,0.0001452,2]
[332752015,1721502661049,-500.0,0.0001452,2]
[332752016,1721502661059,-519.01,0.0001452,2]
[332752017,1721502661070,-983.82,0.0001452,2]
[332752018,1721502661080,-500.0,0.0001452,2]
[332752019,1721502661090,-500.0,0.0001452,2]
[332752020,1721502661101,-500.0,0.0001452,2]
[332752021,1721502661111,-513.01,0.0001452,2]
[332752022,1721502661122,-385.9910749,0.00014521,2]
[332752023,1721502661132,-628.04111532,0.00014528,2]
[332752024,1721502661143,-150.112233,0.000146,2]
[332752025,1721502661153,-526.75209491,0.0001469,2]
[332752026,1721502661163,-150.112233,0.000147,2]
[332752027,1721502661173,-567.41118266,0.00014794,2]
[332752028,1721502661183,-500.0,0.00014794,2]
[332752029,1721502661194,-500.0,0.00014794,2]
[332752030,1721502661204,-500.0,0.00014794,2]
[332752031,1721502661215,-2148.74,0.00014794,2]
[332752032,1721502661226,-767.58,0.00014794,2]
[332752033,1721502661236,-500.0,0.00014794,2]
[332752034,1721502661247,-500.0,0.00014794,2]
[332752035,1721502661256,-500.0,0.00014794,2]
[332752036,1721502661267,-500.0,0.00014794,2]
[332752037,1721502661278,-516.82,0.00014794,2]
[332752038,1721502661289,-869.09,0.00014794,2]
[332752039,1721502661299,-500.0,0.00014794,2]
[332752040,1721502661309,-554.37484196,0.00014794,2]
[332752041,1721502661319,-659.76,0.00014794,2]
[332752042,1721502661329,-500.0,0.00014794,2]
[332752043,1721502661339,-1280.91,0.00014794,2]
[332752044,1721502661350,-510.23,0.00014794,2]
[332752045,1721502661360,-574.37,0.00014794,2]
[332752046,1721502661370,-624.8,0.00014794,2]
[332752047,1721502661380,-1630.66,0.00014794,2]
[332752048,1721502661390,-500.0,0.00014794,2]
[332752049,1721502661400,-897.05,0.00014794,2]
[332752050,1721502661411,-500.0,0.00014794,2]
[332752051,1721502661421,-569.39,0.00014794,2]
[332752052,1721502661432,-500.0,0.00014794,2]
[332752053,1721502661442,-500.0,0.00014794,2]
[332752054,1721502661453,-293.11655243,0.00014794,2]
[332752055,1721502661464,-855.45,0.00014794,2]
[332752056,1721502661685,-500.0,0.00014794,2]
[332752057,1721502661696,-500.0,0.00014794,2]
[332752058,1721502661706,-500.0,0.00014794,2]
[332752059,1721502661718,-500.0,0.00014794,2]
[332752060,1721502661728,-514.11,0.00014794,2]
[332752061,1721502661738,-500.0,0.00014794,2]
[332752062,1721502661747,-500.0,0.00014794,2]
[332752063,1721502661758,-570.33,0.00014794,2]
[332752064,1721502661767,-1729.02,0.00014794,2]
[332752065,1721502661776,-500.0,0.00014794,2]
[332752066,1721502661786,-841.34,0.00014794,2]
[332752067,1721502661799,-3333.82,0.00014794,2]
[332752068,1721502661808,-811.6,0.00014794,2]
[332752069,1721502661817,-500.0,0.00014794,2]
[332752070,1721502661827,-890.96,0.00014794,2]
[332752071,1721502661837,-500.0,0.00014794,2]
[332752072,1721502661847,-910.84,0.00014794,2]
[332752073,1721502661856,-500.0,0.00014794,2]
[332752074,1721502661866,-2988.04,0.00014794,2]
[332752075,1721502661875,-907.34,0.00014794,2]
[332752076,1721502661885,-500.0,0.00014794,2]
[332752077,1721502661895,-500.0,0.00014794,2]
[332752078,1721502661905,-815.17,0.00014794,2]
[332752079,1721502661915,-500.0,0.00014794,2]
[332752080,1721502661927,-796.91,0.00014794,2]
[332752081,1721502661937,-500.0,0.00014794,2]
[332752082,1721502661946,-500.0,0.00014794,2]
[332752083,1721502661956,-549.5,0.00014794,2]
[332752084,1721502661965,-1045.53,0.00014794,2]
[332752085,1721502661975,-2405.94,0.00014794,2]
[332752086,1721502661985,-1192.24,0.00014794,2]
[332752087,1721502661995,-1176.28,0.00014794,2]
[332752088,1721502662005,-596.33,0.00014794,2]
[332752089,1721502662015,-500.0,0.00014794,2]
[332752090,1721502662024,-500.0,0.00014794,2]
[332752091,1721502662034,-691.36,0.00014794,2]
[332752092,1721502662043,-500.0,0.00014794,2]
[332752093,1721502662053,-500.0,0.00014794,2]
[332752094,1721502662063,-677.36,0.00014794,2]
[332752095,1721502662072,-500.0,0.00014794,2]
[332752096,1721502662082,-500.0,0.00014794,2]
[332752097,1721502662091,-2278.46,0.00014794,2]
[332752098,1721502662101,-505.68,0.00014794,2]
[332752099,1721502662110,-4286.48,0.00014794,2]
[332752100,1721502662120,-840.8,0.00014794,2]
[332752101,1721502662130,-500.0,0.00014794,2]
[332752102,1721502662139,-1468.94,0.00014794,2]
[332752103,1721502662149,-665.65,0.00014794,2]
[332752104,1721502662158,-526.46111205,0.00014794,2]
[332752105,1721502662168,-1167.12,0.00014794,2]
[332752106,1721502662177,-500.0,0.00014794,2]
[332752107,1721502662186,-500.0,0.00014794,2]
[332752108,1721502662197,-500.0,0.00014794,2]
[332752109,1721502662206,-505.5,0.00014794,2]
[332752110,1721502662215,-500.0,0.00014794,2]
[332752111,1721502662225,-594.43,0.00014794,2]
[332752112,1721502662236,-500.0,0.00014794,2]
[332752113,1721502662246,-500.0,0.00014794,2]
[332752114,1721502662255,-959.91,0.00014794,2]
[332752115,1721502662264,-500.0,0.00014794,2]
[332752116,1721502662274,-620.43,0.00014794,2]
[332752117,1721502662283,-688.18,0.00014794,2]
[332752118,1721502662292,-1890.28,0.00014794,2]
[332752119,1721502662301,-817.2,0.00014794,2]
[332752120,1721502662311,-500.0,0.00014794,2]
[332752121,1721502662320,-500.0,0.00014794,2]
[332752122,1721502662329,-500.0,0.00014794,2]
[332752123,1721502662339,-500.0,0.00014794,2]
[332752124,1721502662348,-500.0,0.00014794,2]
[332752125,1721502662358,-609.35,0.00014794,2]
[332752126,1721502662367,-596.65,0.00014794,2]
[332752127,1721502662376,-500.0,0.00014794,2]
[332752128,1721502662386,-813.45,0.00014794,2]
[332752129,1721502662395,-500.0,0.00014794,2]
[332752130,1721502662405,-1086.772294,0.00014794,2]
[332752131,1721502662414,-861.65,0.00014794,2]
[332752132,1721502662424,-1086.772294,0.00014794,2]
[332752133,1721502662434,-500.0,0.00014794,2]
[332752134,1721502662443,-558.31,0.00014794,2]
[332752135,1721502662453,-688.03,0.00014794,2]
[332752136,1721502662462,-500.0,0.00014794,2]
[332752137,1721502662472,-2734.19,0.00014794,2]
[332752138,1721502662481,-539.26,0.00014794,2]
[332752139,1721502662491,-1930.7,0.00014794,2]
[332752140,1721502662501,-500.0,0.00014794,2]
[332752141,1721502662511,-500.0,0.00014794,2]
[332752142,1721502662520,-1766.9,0.00014794,2]
[332752143,1721502662530,-500.0,0.00014794,2]
[332752144,1721502662540,-500.0,0.00014794,2]
[332752145,1721502662550,-1282.95,0.00014794,2]
[332752146,1721502662559,-500.0,0.00014794,2]
[332752147,1721502662569,-500.0,0.00014794,2]
[332752148,1721502662579,-500.0,0.00014794,2]
[332752149,1721502662588,-500.0,0.00014794,2]
[332752150,1721502662597,-500.0,0.00014794,2]
[332752151,1721502662607,-500.0,0.00014794,2]
[332752152,1721502662616,-182.99629275,0.00014794,2]
[332752153,1721502662626,-500.0,0.00014794,2]
[332752154,1721502662635,-500.0,0.00014794,2]
[332752155,1721502662645,-500.0,0.00014794,2]
[332752156,1721502662654,-500.0,0.00014794,2]
[332752157,1721502662663,-500.0,0.00014794,2]
[332752158,1721502662673,-1393.65,0.00014794,2]
[332752159,1721502662683,-500.0,0.00014794,2]
[332752160,1721502662692,-961.48,0.00014794,2]
[332752161,1721502662702,-500.0,0.00014794,2]
[332752162,1721502662714,-500.0,0.00014794,2]
[332752163,1721502662725,-500.0,0.00014794,2]
[332752164,1721502662734,-500.0,0.00014794,2]
[332752165,1721502662743,-500.0,0.00014794,2]
[332752166,1721502662754,-500.0,0.00014794,2]
[332752167,1721502662763,-500.0,0.00014794,2]
[332752168,1721502662773,-500.0,0.00014794,2]
[332752169,1721502662782,-1367.5,0.00014794,2]
[332752170,1721502662792,-2168.23,0.00014794,2]
[332752171,1721502662803,-151.0,0.00014794,2]
[332752172,1721502662814,-763.32,0.00014794,2]
[332752173,1721502662824,-560.63,0.00014794,2]
[332752174,1721502662834,-2063.58,0.00014794,2]
[332752175,1721502662844,-529.69,0.00014794,2]
[332752176,1721502662855,-1069.52,0.00014794,2]
[332752177,1721502662864,-1791.92,0.00014794,2]
[332752178,1721502662874,-1003.63,0.00014794,2]
[332752179,1721502662884,-652.79,0.00014794,2]
[332752180,1721502662894,-897.56,0.00014794,2]
[332752181,1721502662903,-500.0,0.00014794,2]
[332752182,1721502662913,-541.46,0.00014794,2]
[332752183,1721502662923,-1267.33,0.00014794,2]
[332752184,1721502662933,-724.24,0.00014794,2]
[332752185,1721502662942,-721.38,0.00014794,2]
[332752186,1721502662952,-1614.07,0.00014794,2]
[332752187,1721502662962,-500.0,0.00014794,2]
[332752188,1721502662971,-2399.27,0.00014794,2]
[332752189,1721502662981,-35124.72,0.00014794,2]
[332752190,1721502662991,-989.91,0.00014794,2]
[332752191,1721502663000,-503.98,0.00014794,2]
[332752192,1721502663010,-500.0,0.00014794,2]
[332752193,1721502663020,-500.0,0.00014794,2]
[332752194,1721502663029,-642.9,0.00014794,2]
[332752195,1721502663039,-521.24,0.00014794,2]
[332752196,1721502663049,-500.0,0.00014794,2]
[332752197,1721502663058,-2146.19,0.00014794,2]
[332752198,1721502663067,-500.0,0.00014794,2]
[332752199,1721502663077,-500.0,0.00014794,2]
[332752200,1721502663086,-570.59373138,0.00014794,2]
[332752201,1721502663096,-711.11,0.00014794,2]
[332752202,1721502663105,-1566.01,0.00014794,2]
[332752203,1721502663115,-269.65233102,0.00014794,2]
[332752204,1721502663125,-563.29,0.00014794,2]
[332752205,1721502663135,-500.0,0.00014794,2]
[332752206,1721502663145,-3869.74,0.00014794,2]
[332752207,1721502663154,-500.0,0.00014794,2]
[332752208,1721502663164,-921.43,0.00014794,2]
[332752209,1721502663174,-500.0,0.00014794,2]
[332752210,1721502663183,-500.0,0.00014794,2]
[332752211,1721502663193,-2074.95,0.00014794,2]
[332752212,1721502663203,-1226.56,0.00014794,2]
[332752213,1721502663213,-500.0,0.00014794,2]
[332752214,1721502663222,-654.24,0.00014794,2]
[332752215,1721502663232,-500.0,0.00014794,2]
[332752216,1721502663241,-744.59,0.00014794,2]
[332752217,1721502663251,-1193.56,0.00014794,2]
[332752218,1721502663262,-151.0,0.00014794,2]
[332752219,1721502663271,-2356.17,0.00014794,2]
[332752220,1721502663280,-2413.04,0.00014794,2]
[332752221,1721502663291,-3002.39,0.00014794,2]
[332752222,1721502663301,-5614.66,0.00014794,2]
[332752223,1721502663311,-762.0,0.00014794,2]
[332752224,1721502663321,-699.32,0.00014794,2]
[332752225,1721502663331,-674.98863108,0.00014794,2]
[332752226,1721502664032,-232.95849691,0.00014794,2]
[332752227,1721502664045,-601.56,0.00014794,2]
[332752228,1721502664057,-500.0,0.00014794,2]
[332752229,1721502664067,-500.0,0.00014794,2]
[332752230,1721502664076,-2628.42,0.00014794,2]
[332752231,1721502664086,-2158.72,0.00014794,2]
[332752232,1721502664099,-607.75,0.00014794,2]
[332752233,1721502664108,-682.11,0.00014794,2]
[332752234,1721502664119,-500.0,0.00014794,2]
[332752235,1721502664133,-500.0,0.00014794,2]
[332752236,1721502664143,-758.22,0.00014794,2]
[332752237,1721502664153,-500.0,0.00014794,2]
[332752238,1721502664163,-1334.16,0.00014794,2]
[332752239,1721502664172,-1436.8,0.00014794,2]
[332752240,1721502664181,-500.0,0.00014794,2]
[332752241,1721502664191,-2479.41,0.00014794,2]
[332752242,1721502664200,-500.0,0.00014794,2]
[332752243,1721502664209,-9974.88,0.00014794,2]
[332752244,1721502664219,-3611.41,0.00014794,2]
[332752245,1721502664228,-647.58,0.00014794,2]
[332752246,1721502664238,-500.0,0.00014794,2]
[332752247,1721502664248,-769.49,0.00014794,2]
[332752248,1721502664258,-596.66,0.00014794,2]
[332752249,1721502664267,-1189.46,0.00014794,2]
[332752250,1721502664277,-500.0,0.00014794,2]
[332752251,1721502664286,-1876.24,0.00014794,2]
[332752252,1721502664296,-500.0,0.00014794,2]
[332752253,1721502664307,-518.45285291,0.00014794,2]
[332752254,1721502664317,-922.66,0.00014794,2]
[332752255,1721502664328,-3228.45,0.00014794,2]
[332752256,1721502664338,-500.0,0.00014794,2]
[332752257,1721502664347,-693.44,0.00014794,2]
[332752258,1721502664357,-617.69,0.00014794,2]
[332752259,1721502664366,-2182.76,0.00014794,2]
[332752260,1721502664376,-500.0,0.00014794,2]
[332752261,1721502664385,-500.0,0.00014794,2]
[332752262,1721502664394,-500.0,0.00014794,2]
[332752263,1721502664403,-9525.09,0.00014794,2]
[332752264,1721502664413,-3568.54,0.00014794,2]
[332752265,1721502664423,-2915.71,0.00014794,2]
[332752266,1721502664432,-18390.94,0.00014794,2]
[332752267,1721502664441,-598.86,0.00014794,2]
[332752268,1721502664451,-912.35,0.00014794,2]
[332752269,1721502664460,-500.0,0.00014794,2]
[332752270,1721502664470,-650.96,0.00014794,2]
[332752271,1721502664480,-2230.68,0.00014794,2]
[332752272,1721502664489,-438.02356023,0.00014794,2]
[332752273,1721502664499,-5451.22,0.00014794,2]
[332752274,1721502664510,-2974.58,0.00014794,2]
[332752275,1721502664519,-1615.36,0.00014794,2]
[332752276,1721502664530,-500.0,0.00014794,2]
[332752277,1721502664541,-930.37,0.00014794,2]
[332752278,1721502664562,-1486.4,0.00014794,2]
[332752279,1721502664574,-500.0,0.00014794,2]
[332752280,1721502664583,-3008.42,0.00014794,2]
[332752281,1721502664593,-1164.01,0.00014794,2]
[332752282,1721502664602,-500.0,0.00014794,2]
[332752283,1721502664614,-505.99,0.00014794,2]
[332752284,1721502664624,-500.0,0.00014794,2]
[332752285,1721502664634,-7393.66,0.00014794,2]
[332752286,1721502664644,-1240.33,0.00014794,2]
[332752287,1721502664653,-5002.05,0.00014794,2]
[332752288,1721502664663,-500.0,0.00014794,2]
[332752289,1721502664672,-637.33,0.00014794,2]
[332752290,1721502664682,-500.0,0.00014794,2]
[332752291,1721502664692,-500.0,0.00014794,2]
[332752292,1721502664701,-3246.02,0.00014794,2]
[332752293,1721502664712,-688.84,0.00014794,2]
[332752294,1721502664726,-842.79,0.00014794,2]
[332752295,1721502664735,-892.81,0.00014794,2]
[332752296,1721502664745,-2112.87,0.00014794,2]
[332752297,1721502664758,-500.0,0.00014794,2]
[332752298,1721502664767,-1172.79,0.00014794,2]
[332752299,1721502664777,-2831.62,0.00014794,2]
[332752300,1721502664788,-3992.43,0.00014794,2]
[332752301,1721502664799,-167.06049577,0.00014794,2]
[332752302,1721502664810,-756.41,0.00014794,2]
[332752303,1721502664821,-660.429424,0.00014794,2]
[332752304,1721502664830,-660.429424,0.00014794,2]
[332752305,1721502664839,-1025.73,0.00014794,2]
[332752306,1721502664849,-500.0,0.00014794,2]
[332752307,1721502664859,-1594.87,0.00014794,2]
[332752308,1721502664870,-660.429424,0.00014794,2]
[332752309,1721502664879,-660.429424,0.00014794,2]
[332752310,1721502664889,-500.0,0.00014794,2]
[332752311,1721502664898,-12028.21,0.00014794,2]
[332752312,1721502664908,-413.12462738,0.00014794,2]
[332752313,1721502664919,-500.0,0.00014794,2]
[332752314,1721502664929,-500.0,0.00014794,2]
[332752315,1721502664938,-2095.06,0.00014794,2]
[332752316,1721502664948,-787.88,0.00014794,2]
[332752317,1721502664958,-3362.83,0.00014794,2]
[332752318,1721502664968,-500.0,0.00014794,2]
[332752319,1721502664977,-545.49,0.00014794,2]
[332752320,1721502664986,-1126.35,0.00014794,2]
[332752321,1721502664996,-1085.97,0.00014794,2]
[332752322,1721502665006,-626.5,0.00014794,2]
[332752323,1721502665016,-2866.21,0.00014794,2]
[332752324,1721502665025,-500.0,0.00014794,2]
[332752325,1721502665034,-1437.62,0.00014794,2]
[332752326,1721502665044,-500.0,0.00014794,2]
[332752327,1721502665060,-558.13,0.00014794,2]
[332752328,1721502665074,-3130.58,0.00014794,2]
[332752329,1721502665084,-500.0,0.00014794,2]
[332752330,1721502665093,-500.0,0.00014794,2]
[332752331,1721502665103,-2781.42,0.00014794,2]
[332752332,1721502665113,-2367.78,0.00014794,2]
[332752333,1721502665122,-500.0,0.00014794,2]
[332752334,1721502665131,-5408.7,0.00014794,2]
[332752335,1721502665141,-500.0,0.00014794,2]
[332752336,1721502665151,-10858.16,0.00014794,2]
[332752337,1721502665161,-820.06,0.00014794,2]
[332752338,1721502665170,-1251.33,0.00014794,2]
[332752339,1721502665180,-500.0,0.00014794,2]
[332752340,1721502665189,-500.0,0.00014794,2]
[332752341,1721502665200,-500.0,0.00014794,2]
[332752342,1721502665209,-2190.32,0.00014794,2]
[332752343,1721502665219,-1627.8,0.00014794,2]
[332752344,1721502665230,-500.0,0.00014794,2]
[332752345,1721502665240,-500.0,0.00014794,2]
[332752346,1721502665250,-1332.24,0.00014794,2]
[332752347,1721502665260,-500.0,0.00014794,2]
[332752348,1721502665270,-2697.92,0.00014794,2]
[332752349,1721502665280,-500.0,0.00014794,2]
[332752350,1721502665290,-500.0,0.00014794,2]
[332752351,1721502665303,-1186.45,0.00014794,2]
[332752352,1721502665320,-500.0,0.00014794,2]
[332752353,1721502665329,-500.0,0.00014794,2]
[332752354,1721502665339,-500.0,0.00014794,2]
[332752355,1721502665349,-538.74851506,0.00014794,2]
[332752356,1721502665359,-1831.22,0.00014794,2]
[332752357,1721502665368,-1386.39,0.00014794,2]
[332752358,1721502665378,-982.65,0.00014794,2]
[332752359,1721502665388,-560.44,0.00014794,2]
[332752360,1721502665398,-500.0,0.00014794,2]
[332752361,1721502665408,-580.38,0.00014794,2]
[332752362,1721502665418,-500.0,0.00014794,2]
[332752363,1721502665427,-53188.42,0.00014794,2]
[332752364,1721502665436,-2374.03,0.00014794,2]
[332752365,1721502665447,-500.0,0.00014794,2]
[332752366,1721502665456,-519.01,0.00014794,2]
[332752367,1721502665467,-983.82,0.00014794,2]
[332752368,1721502665477,-500.0,0.00014794,2]
[332752369,1721502665487,-500.0,0.00014794,2]
[332752370,1721502665497,-500.0,0.00014794,2]
[332752371,1721502665507,-513.01,0.00014794,2]
[332752372,1721502665516,-5303.4494987,0.00014821,2]
[332752373,1721502665526,-806.5931156,0.00014917,2]
[332752374,1721502665536,-153.0,0.00014932,2]
[332752375,1721502665545,-153.0,0.00014932,2]
[332752376,1721502665564,-153.0,0.00014932,2]
[332752377,1721502665574,-360.08491037,0.00014934,2]
[332752378,1721502665583,-150.0,0.00014978,2]
[332752379,1721502665593,-504.0,0.00014978,2]
[332752380,1721502665603,-2426.31493042,0.00015,2]
[332752381,1721502665612,-408.62137003,0.00015,2]
[332752382,1721502665622,-2843.70100215,0.00015,2]
[332752383,1721502665631,-500.0,0.00015068,2]
[332752384,1721502665641,-500.0,0.00015068,2]
[332752385,1721502665650,-500.0,0.00015068,2]
[332752386,1721502665660,-2148.74,0.00015068,2]
[332752387,1721502665670,-767.58,0.00015068,2]
[332752388,1721502665680,-500.0,0.00015068,2]
[332752389,1721502665689,-500.0,0.00015068,2]
[332752390,1721502665699,-500.0,0.00015068,2]
[332752391,1721502665709,-500.0,0.00015068,2]
[332752392,1721502665724,-516.82,0.00015068,2]
[332752393,1721502665734,-869.09,0.00015068,2]
[332752394,1721502665744,-500.0,0.00015068,2]
[332752395,1721502665755,-659.76,0.00015068,2]
[332752396,1721502665766,-500.0,0.00015068,2]
[332752397,1721502665775,-1280.91,0.00015068,2]
[332752398,1721502665785,-510.23,0.00015068,2]
[332752399,1721502665797,-574.37,0.00015068,2]
[332752400,1721502665807,-624.8,0.00015068,2]
[332752401,1721502665818,-1630.66,0.00015068,2]
[332752402,1721502665828,-500.0,0.00015068,2]
[332752403,1721502665839,-897.05,0.00015068,2]
[332752404,1721502665848,-500.0,0.00015068,2]
[332752405,1721502665858,-569.39,0.00015068,2]
[332752406,1721502665868,-500.0,0.00015068,2]
[332752407,1721502665877,-500.0,0.00015068,2]
[332752408,1721502665887,-855.45,0.00015068,2]
[332752409,1721502665897,-500.0,0.00015068,2]
[332752410,1721502665907,-500.0,0.00015068,2]
[332752411,1721502665917,-500.0,0.00015068,2]
[332752412,1721502665926,-514.11,0.00015068,2]
[332752413,1721502665936,-500.0,0.00015068,2]
[332752414,1721502665948,-500.0,0.00015068,2]
[332752415,1721502665958,-570.33,0.00015068,2]
[332752416,1721502665968,-1729.02,0.00015068,2]
[332752417,1721502665977,-500.0,0.00015068,2]
[332752418,1721502665988,-841.34,0.00015068,2]
[332752419,1721502665999,-3333.82,0.00015068,2]
[332752420,1721502666009,-811.6,0.00015068,2]
[332752421,1721502666019,-500.0,0.00015068,2]
[332752422,1721502666029,-890.96,0.00015068,2]
[332752423,1721502666039,-500.0,0.00015068,2]
[332752424,1721502666051,-910.84,0.00015068,2]
[332752425,1721502666063,-500.0,0.00015068,2]
[332752426,1721502666073,-2988.04,0.00015068,2]
[332752427,1721502666085,-907.34,0.00015068,2]
[332752428,1721502666095,-500.0,0.00015068,2]
[332752429,1721502666106,-500.0,0.00015068,2]
[332752430,1721502666117,-815.17,0.00015068,2]
[332752431,1721502666127,-500.0,0.00015068,2]
[332752432,1721502666137,-796.91,0.00015068,2]
[332752433,1721502666146,-500.0,0.00015068,2]
[332752434,1721502666156,-500.0,0.00015068,2]
[332752435,1721502666166,-549.5,0.00015068,2]
[332752436,1721502666176,-1045.53,0.00015068,2]
[332752437,1721502666186,-2405.94,0.00015068,2]
[332752438,1721502666197,-1192.24,0.00015068,2]
[332752439,1721502666207,-1176.28,0.00015068,2]
[332752440,1721502666217,-596.33,0.00015068,2]
[332752441,1721502666227,-500.0,0.00015068,2]
[332752442,1721502666236,-577.70418545,0.00015068,2]
[332752443,1721502666246,-691.36,0.00015068,2]
[332752444,1721502666256,-500.0,0.00015068,2]
[332752445,1721502666266,-500.0,0.00015068,2]
[332752446,1721502666276,-677.36,0.00015068,2]
[332752447,1721502666286,-500.0,0.00015068,2]
[332752448,1721502666295,-500.0,0.00015068,2]
[332752449,1721502666306,-2278.46,0.00015068,2]
[332752450,1721502666317,-505.68,0.00015068,2]
[332752451,1721502666327,-4286.48,0.00015068,2]
[332752452,1721502666336,-840.8,0.00015068,2]
[332752453,1721502666346,-500.0,0.00015068,2]
[332752454,1721502666356,-1468.94,0.00015068,2]
[332752455,1721502666366,-665.65,0.00015068,2]
[332752456,1721502666375,-1167.12,0.00015068,2]
[332752457,1721502666385,-500.0,0.00015068,2]
[332752458,1721502666396,-554.63644339,0.00015068,2]
[332752459,1721502666406,-500.0,0.00015068,2]
[332752460,1721502666416,-505.5,0.00015068,2]
[332752461,1721502666428,-500.0,0.00015068,2]
[332752462,1721502666439,-594.43,0.00015068,2]
[332752463,1721502666449,-608.3971694,0.00015068,2]
[332752464,1721502666459,-500.0,0.00015068,2]
[332752465,1721502666468,-959.91,0.00015068,2]
[332752466,1721502666479,-500.0,0.00015068,2]
[332752467,1721502666489,-620.43,0.00015068,2]
[332752468,1721502666498,-688.18,0.00015068,2]
[332752469,1721502666508,-1890.28,0.00015068,2]
[332752470,1721502666518,-817.2,0.00015068,2]
[332752471,1721502666528,-500.0,0.00015068,2]
[332752472,1721502666538,-500.0,0.00015068,2]
[332752473,1721502666550,-500.0,0.00015068,2]
[332752474,1721502666560,-500.0,0.00015068,2]
[332752475,1721502666571,-500.0,0.00015068,2]
[332752476,1721502666581,-609.35,0.00015068,2]
[332752477,1721502666592,-596.65,0.00015068,2]